Cogmind - Beta 12 @@@ ROGUE MODE // 2023.09.04 @ 13:53:27 Player: HAPPY Result: Destroyed by as-99500 with Assembled Blade Performance ------------- Evolutions (0) 0 Regions Visited (2) 400 Robots Destroyed (4) 20 Value Destroyed (132) 132 Prototype IDs (0) 0 Alien Tech Used (0) 0 Bonus (0) 0 TOTAL SCORE: 552 Bonus ------- None Cogmind --------- Core Integrity 0/250 Matter 230/300 Energy 227/240 System Corruption 0% Temperature Warm (138) Movement Core (600) Ox11 Location -10/Mines Parts ------- > --- POWER (1) -------- Nuclear Core > --- PROPULSION (2) --- (None) > --- UTILITY (2) ------ Large Storage Unit Core Shielding > --- WEAPON (2) ------- Beam Cannon Minigun > --- INVENTORY (15) --- Ion Engine Light Treads Light Treads Small Storage Unit Small Matter Pod (50) Large Matter Pod (149) Improved Sensor Array ECM Suite Weapon Shielding Light Armor Plating Hacking Suite Particle Gun Heavy Assault Rifle Mining Claw Peak State ------------ > --- POWER ------------ Nuclear Core > --- PROPULSION ------- Light Treads Light Treads > --- UTILITY ---------- Large Storage Unit Core Shielding > --- WEAPON ----------- Beam Cannon Minigun > --- INVENTORY -------- Ion Engine Light Treads Light Treads Small Storage Unit Small Matter Pod Large Matter Pod Improved Sensor Array ECM Suite Weapon Shielding Light Armor Plating Hacking Suite Particle Gun Heavy Assault Rifle Mining Claw [Rating: 13] Favorites ----------- Power Light Ion Engine Engine Light Ion Engine Power Core Nuclear Core Propulsion Light Treads Treads Light Treads Utility Small Storage Unit Device ECM Suite Storage Small Storage Unit Protection Core Shielding Weapon Assault Rifle Energy Gun Particle Gun Energy Cannon Beam Cannon Ballistic Gun Assault Rifle Build | -11 -10 -10 ------- Run | Jun Mat Min Slots Evolved . | . . . Power . | . . . Propulsion . | . . . Utility . | . . . Weapon . | . . . Parts Attached 15 | 6 3 6 Power 3 | 1 1 1 Engine 2 | 1 1 . Core 1 | . . 1 Reactor . | . . . Propulsion 2 | 2 . . Treads 2 | 2 . . Leg . | . . . Wheel . | . . . Hover . | . . . Flight . | . . . Utility 4 | 1 1 2 Device 1 | . 1 . Storage 2 | 1 . 1 Processor . | . . . Hackware . | . . . Protection 1 | . . 1 Artifact . | . . . Weapon 6 | 2 1 3 Energy Gun 1 | . 1 . Energy Cannon 1 | . . 1 Ballistic Gun 4 | 2 . 2 Ballistic Cannon . | . . . Launcher . | . . . Special Weapon . | . . . Impact Weapon . | . . . Slashing Weapon . | . . . Piercing Weapon . | . . . Special Melee Weapon . | . . . Unidentified Prototypes . | . . . Parts Lost 2 | . . 2 Power . | . . . Propulsion 2 | . . 2 Utility . | . . . Weapon . | . . . Highest Loss Streak 2 | . . 2 To Critical Strikes . | . . . Average Slot Usage (%) 98 | . 99 98 Engine 11 | . 14 9 Core 2 | . . 4 Treads 28 | . 28 28 Device 7 | . 13 2 Storage 14 | . 14 14 Protection 5 | . . 9 Energy Gun 7 | . 10 4 Energy Cannon 5 | . . 9 Ballistic Gun 15 | . 17 14 Naked Turns . | . . . Heaviest Build 34 | 11 17 34 Greatest Support 40 | 40 40 40 Greatest Overweight (x) 3 | 3 . . Average Overweight (x) . | . . . Largest Inventory Capacity 15 | 8 8 15 Average Capacity 10 | 7 8 13 Most Carried 15 | 4 8 15 Average Carried 8 | 2 7 11 Final Capacity 15 | 8 8 15 Final Carried 14 | 4 8 14 Class Distribution -------------------- 100% | Mutant Dominant Class ---------------- Mutant | -10/Materials Mutant | -10/Mines Resources | -11 -10 -10 ----------- Run | Jun Mat Min Matter Collected 535 | 240 153 142 Remotely . | . . . Salvage Created 227 | . 153 74 Parts 8 | . 6 2 Haulers Intercepted . | . . . Recyclers Shooed . | . . . Parts Field Recycled . | . . . Retrieved Matter . | . . . Parts Self-Destructed . | . . . Prevented . | . . . Kills | -11 -10 -10 ------- Run | Jun Mat Min Combat Hostiles Destroyed 4 | . 2 2 Guns 4 | . 2 2 Classes Destroyed 4 | . 2 2 Recycler 1 | . 1 . Grunt 2 | . 2 . Sentry 1 | . . 1 Assembled 1 | . . 1 Best Kill Streak 2 | . 2 1 Combat Bots Only 2 | . 2 1 Max Kills in Single Turn 1 | . 1 1 Gunslinging . | . . . Exploded . | . . . Melee . | . . . Uniques/NPCs Destroyed . | . . . Combat | -11 -10 -10 -------- Run | Jun Mat Min Damage Taken 765 | . 55 710 Core 252 | . 39 213 Absorbed by Shields . | . . . Redirected to Shielding 36 | . . 36 Core Remaining (%) 100 | 100 . . Volleys Fired 18 | 1 7 10 Largest 2 | 1 2 2 Hottest 85 | 20 40 85 Shots Fired 35 | 1 14 20 Gun 30 | 1 14 15 Cannon 5 | . . 5 Launcher . | . . . Special . | . . . Kinetic 25 | 1 14 10 Thermal 10 | . . 10 Explosive . | . . . Electromagnetic . | . . . Robot Hit Streak 5 | . 3 5 Robot Miss Streak 3 | 1 2 3 Penetration Max . | . . . Secondary Targets 1 | . 1 . Max Gunslinging Chain 1 | . 1 . Shots Hit Robots 21 | . 9 12 Core Hits 11 | . 5 6 Critical Kills . | . . . Critical Parts Destroyed . | . . . Critical Strikes . | . . . Melee Attacks . | . . . Impact . | . . . Slashing . | . . . Piercing . | . . . Sneak Attacks . | . . . Combat Hostiles . | . . . Follow-up Attacks . | . . . Damage Inflicted 314 | . 94 220 Guns 261 | . 94 167 Cannons 53 | . . 53 Explosions . | . . . Melee . | . . . Ramming . | . . . Kinetic 201 | . 94 107 Thermal 113 | . . 113 Explosive . | . . . Electromagnetic . | . . . Impact . | . . . Slashing . | . . . Piercing . | . . . Highest Corruption . | . . . Average Corruption . | . . . Corruption Purged . | . . . Corruption Blocked . | . . . Overload Shots . | . . . Overflow Damage . | . . . Projectiles . | . . . Explosions . | . . . Melee . | . . . Knockbacks . | . . . Impact . | . . . Kinetic . | . . . Secondary . | . . . Self-Inflicted Damage . | . . . Shots . | . . . Rammed . | . . . Targets Rammed 1 | . 1 . Kicked . | . . . Crushed 1 | . 1 . Highest Temperature 156 | . 9 156 Average Temperature 60 | . 7 68 Received Heat Transfer 111 | . 30 81 Siege Activations . | . . . Robots Corrupted . | . . . Combat Hostiles . | . . . Parts Fried . | . . . Impact Corruptions . | . . . Robots Melted . | . . . Combat Hostiles . | . . . Parts Melted . | . . . Heat Transferred 259 | . . 259 Parts Sabotaged . | . . . Parts Stolen . | . . . Parts Stripped . | . . . Power Chain Reactions . | . . . Missiles Intercepted . | . . . Alert | -11 -10 -10 ------- Run | Jun Mat Min Peak Influence 72 | . 72 40 Initial 5 | . . 5 Average 29 | . 51 28 Maximum Alert Level . | . . . Low Security (%) 100 | 100 100 100 Level 1 . | . . . Level 2 . | . . . Level 3 . | . . . Level 4 . | . . . Level 5 . | . . . High Security . | . . . Max Security . | . . . Squads Dispatched 1 | . . 1 Investigation 1 | . . 1 Extermination . | . . . Reinforcement . | . . . Assault . | . . . Garrison . | . . . Intercept . | . . . Searches Triggered . | . . . Construction Impeded . | . . . Haulers Reinforced . | . . . Active Scanning Responses . | . . . Cargo Convoy Interrupts . | . . . Stealth | -11 -10 -10 --------- Run | Jun Mat Min Distress Signals 1 | . 1 . Communications Jammed . | . . . Distress Signals . | . . . Times Spotted 11 | . 3 8 Peak Tracking Total 6 | . 2 6 Tactical Retreats 1 | . 1 . Traps | -11 -10 -10 ------- Run | Jun Mat Min Traps Triggered . | . . . Indirectly . | . . . Trap Hack Attempts . | . . . Triggered . | . . . Disarmed . | . . . Reprogrammed . | . . . Reused . | . . . Traps Extracted . | . . . Installed . | . . . Triggered . | . . . Machines | -11 -10 -10 ---------- Run | Jun Mat Min Machines Disabled . | . . . Max in Single Turn . | . . . Machines Repaired . | . . . Machines Sabotaged . | . . . Overloaded Fab Kills . | . . . Hacking | -11 -10 -10 --------- Run | Jun Mat Min Machines Accessed 2 | . 1 1 Terminals 1 | . 1 . Fabricators . | . . . Repair Stations . | . . . Recycling Units . | . . . Scanalyzers . | . . . Garrison Access . | . . . Total Hacks 4 | . 3 1 Successful 3 | . 2 1 Failed 1 | . 1 . Catastrophic . | . . . Database Lockouts . | . . . Manual 4 | . . 4 Terminals 3 | . 3 . Fabricators . | . . . Repair Stations . | . . . Recycling Units . | . . . Scanalyzers . | . . . Garrison Access . | . . . Terminal Hacks 3 | . 2 1 Record 2 | . 2 . Open Door 1 | . . 1 Fabricator Hacks . | . . . Repair Station Hacks . | . . . Recycling Unit Hacks . | . . . Scanalyzer . | . . . Garrison Access Hacks . | . . . Unauthorized Hacks . | . . . Terminals . | . . . Fabricators . | . . . Repair Stations . | . . . Recycling Units . | . . . Scanalyzers . | . . . Garrison Access . | . . . Data Cores Recovered . | . . . Used . | . . . Hacking Detections 1 | . 1 . Full Trace Events 1 | . 1 . Feedback Events . | . . . Feedback Blocked . | . . . Robot Schematics Acquired . | . . . Robots Built . | . . . Authchips . | . . . Time . | . . . Total Robot Build Rating . | . . . Part Schematics Acquired . | . . . Parts Built . | . . . Authchips . | . . . Time . | . . . Total Part Build Rating . | . . . Parts Repaired . | . . . Time . | . . . Parts Recycled . | . . . Recycled Matter . | . . . Retrieved Matter . | . . . Retrieved Components . | . . . Parts Scanalyzed . | . . . Part Schematics Acquired . | . . . Parts Damaged . | . . . Bothacking | -11 -10 -10 ------------ Run | Jun Mat Min Used RIF Installer . | . . . Robots Hacked . | . . . Non-combat . | . . . Combat . | . . . Robot Hacks Applied . | . . . Relay Couplers Released . | . . . Fabnet Peak Effective % . | . . . Robots Rewired . | . . . Allies Hacked . | . . . Hacks Repelled . | . . . Allies | -11 -10 -10 -------- Run | Jun Mat Min Total Allies . | . . . Largest Group . | . . . Highest-Rated Group . | . . . Highest-Rated Ally . | . . . Total Orders . | . . . Ally Attacks . | . . . Total Damage . | . . . Kills . | . . . Allies Corrupted . | . . . Allies Melted . | . . . Intel | -11 -10 -10 ------- Run | Jun Mat Min Robot Analysis Total . | . . . Derelict Logs Recovered . | . . . Drone Launches . | . . . Drone Recoveries . | . . . Exploration | -11 -10 -10 ------------- Run | Jun Mat Min Turns Passed 1278 | 298 442 538 Spaces Moved 743 | 185 255 303 Core 23 | 23 . . Treads 720 | 162 255 303 Legs . | . . . Wheels . | . . . Hover . | . . . Flight . | . . . Fastest Speed 50 | 50 160 160 Average Speed 158 | 152 160 160 Slowest Speed 200 | 200 160 160 Overloaded Moves . | . . . Propulsion Burnouts . | . . . Robots Hopped . | . . . Cave-ins Triggered . | . . . Exploration Rate (%) 22 | 9 24 34 Regions Visited 2 Branch Regions 1 Pre-discovered Areas . | . . . Known Exits Taken . | . . . Unknown Exits Taken 2 | 1 1 . Scrap Searched 1 | . . 1 Spaces Dug . | . . . Terrain Destroyed . | . . . Melee . | . . . Projectile . | . . . AOE . | . . . Terrain Rammed . | . . . Walls Destroyed . | . . . Machines Disabled . | . . . Actions | -11 -10 -10 --------- Run | Jun Mat Min Total 819 | 201 277 341 Wait . | . . . Move 741 | 184 254 303 Hop . | . . . Pick Up 32 | 10 8 14 Fast Attach . | . . . Attach 9 | 6 2 1 Detach 1 | . 1 . Swap 6 | . 1 5 Drop 11 | . 3 8 Fire 18 | 1 7 10 Melee . | . . . Ram . | . . . Kick . | . . . Crush 1 | . 1 . Escape Stasis . | . . . Rewire . | . . . Trap . | . . . Miscellaneous . | . . . Route ------- -11/Junkyard -10/Materials -10/Mines History --------- Turn | Location | Event 45 | -11/Junkyard | Discovered new exit (range 16) 299 | -11/Junkyard | Entered Materials 300 | -10/Materials | Build established: Mutant 581 | -10/Materials | Discovered new exit (range 6) 741 | -10/Materials | Entered Mines 1078 | -10/Mines | Met a Derelict shopkeep closing up shop 1246 | -10/Mines | Assembled infested the area 1271 | -10/Mines | Core integrity fell below 50% 1277 | -10/Mines | Core integrity fell below 20% 1279 | -10/Mines | Destroyed by as-99500 with Assembled Blade Last Messages --------------- Sealed Doors opened. 13-QH0(g): "Sorry, the Unaware have moved into these parts and I'm closing up shop. No more sales from me!" ALERT: Derelict activity detected in mines. Dispatching investigation squad. 13-QH0(g): "Take whatever you can and run for it!" Acquired Nuclear Core. Acquired Minigun. Dropped Lgt. Ion Engine. Acquired Hacking Suite. Dropped Assault Rifle. Acquired Imp. Sensor Array. ALERT: Infestation in the mines, dispatching Demolisher response squad. T-07 Excavator system corrupted by crushing effect. T-07 Excavator suffers critical hit (Destroy). T-07 Excavator destroyed. as-75362 sneak attacks. as-75362 destroyed. Lgt. Treads destroyed. as-61007 destroyed. Map ----- +----------------------------------------------------+ | ???#"!! # #?????????????????????????????? | | ???# !+ #?????????????????????????????? | | ???# + #?????????????????????????????? | | ???#"! # #?????????????????????????????? | | ???##! ## #?????????????????????????????? | | ????###### #?????????????????????????????? | | ?????????# #???##????????????????????????? | | ?????????##### ####??? ##??????????????????????? | | ?????????????# #?????? #??????????????????????? | | ?????????????# #?????? #??????????????????????? | | ?????????????# #?????? ##?????????????????????? | | ?????????????# #####?? ###???????????????????? | | ?????????????# #??# ##??????????????????? | | ?????????????##### #??# ####???????????????? | | ?????????????????# #?? ????????????????? | | ?????????????????# #?? ? ???????????????? | | ??????????#####??# #?? """ #???????????????? | | ??????????# ##?# #### """ #???????????????? | | ?????????? ### """ ##??????????????? | | ??????????# ## ##?????????????? | | ??????????# ####### #?????????????? | | ??????????# #?????# #?????????????? | | ??????????# #?????# ## ##?????????????? | | ?????????## #?????# #??######??????????????? | | ?????????# #?????# #??????????????????????? | | ?????????# ##????## @#####??????????????????? | | ?????????# ##???## %a ##?????????????????? | | ?????????## ##### % a ##????????????????? | | ??????????#### ## aa #????????????????? | | ?????????????## ##########???????? | | ??????????????## |% #???????? | | ????????####??## ######## #?? | | ???????## ##?# #????????????????? | | ??###### ### ### ##????????????????? | | ?##""## ## ##?# #?????????????????? | | ?#" #X[ ######??# #?????????????????? | | ?#" [ ### #??????##++##????????????????? | | ?#"! * ##?## ##??????# #????????????????? | | ?#" ! # #???# #???????# #????????????????? | | ?##""## ##### #??????## #????????????????? | | ??##### #??????# #????????????????? | | ??????## #??????### #????????????????? | | ???????############????????#####????????????????? | | ????????????????????????????????????????????????? | | ????????????????????????????????????????????????? | | ????????????????????????????????????????????????? | | ????????????????????????????????????????????????? | | ????????????????????????????????????????????????? | | ????????????????????????????????????????????????? | | ????????????????????????????????????????????????? | +----------------------------------------------------+ Best States ------------- Heat Dissipation 25 Energy Generation 14 Energy Capacity 250 Matter Stores 300 Matter Capacity 300 Sight Range 16 Terrain Scan Density 10 ECM Strength 1 Core Shielding 20 Evasion (%) 40 Recoil Reduction 2 Item Schematics ----------------- None Robot Schematics ------------------ None Fabricated ------------ Nothing Alien Tech Used ----------------- None Achievements -------------- None Challenges ------------ None Game ------ Seed BeamCouplerChainsword Manual? 0 Play Time 00:18:19 Cumulative 281.8 hours Start 2023.09.04 @ 13:35:37 End 2023.09.04 @ 13:53:27 Sessions 1 Manual Loads 0 Difficulty Rogue Special Mode None Game No. 6 Rogue 3 Adventurer 3 Explorer 0 Win Type - Total 1 Types 1/0/0/0/0/0/0/0/0 Lore% 4 Gallery% 24 Achievement% 21 Wizard Run 0 Options --------- ASCII 0 Keyboard 0 Movement Arrows Keybinds 0 Fullscreen 1 Font 24/Smallcaps Map View 76x50 Tactical HUD 0 Map Filters NONE Filters NONE Steam 1 RUN: e8b081ab-0a0e-4000-9b76-d17318a2e78a